bitfinex-derivatives/quotes_SOLF0:USTF0_20240924
["timestamp","ask_amount","ask_price","bid_price","bid_amount"]
[1727221017163,10.97,153.35,153.27,348.97]
[1727221017465,10.97,153.35,153.27,338.0]
[1727221017667,10.97,153.35,153.28,3.2616]
[1727221018466,10.97,153.35,153.29,3.2615]
[1727221019269,10.97,153.35,153.3,3.2613]
[1727221019769,10.97,153.35,153.27,10.97]
[1727221019973,10.97,153.35,153.29,3.2614]
[1727221020674,10.97,153.35,153.3,3.2613]
[1727221021775,10.97,153.35,153.29,3.2615]
[1727221022376,10.97,153.35,153.25,14.1506697]
[1727221022576,10.97,153.35,153.25,10.97]
[1727221023471,10.97,153.33,153.24,10.97]
[1727221023677,10.97,153.29,153.21,1.2872]
[1727221023873,14.16922996,153.29,153.21,1.2872]
[1727221024174,14.16922996,153.29,153.23,3.2628]
[1727221024175,3.2622,153.26,153.23,3.2628]
[1727221024876,3.2622,153.26,153.22,3.263]
[1727221025571,3.2622,153.26,153.23,3.2628]
[1727221026171,3.2625,153.25,153.21,3.2633]
[1727221026377,10.97,153.27,153.21,3.2633]
[1727221026779,10.97,153.27,153.19,3.2635]
[1727221026979,2.6037,153.26,153.19,3.2635]
[1727221027578,2.6037,153.26,153.19,10.97]
[1727221028781,5.8659,153.26,153.22,3.2629]
[1727221029685,2.6037,153.26,153.17,10.97]
[1727221029885,13.5737,153.26,153.17,10.97]
[1727221030686,3.263,153.23,153.19,3.2635]
[1727221031083,13.5737,153.26,153.15,78.3]
[1727221031288,3.2632,153.22,153.17,3.264]
[1727221031484,10.97,153.24,153.14,10.97]
[1727221032889,3.2633,153.21,153.17,3.2641]
[1727221033690,10.97,153.24,153.13,3.33038741]
[1727221033986,10.97,153.21,153.1,340.3489]
[1727221034194,10.97,153.19,153.11,6.57403362]
[1727221034485,2.5658,153.18,153.11,6.57403362]
[1727221035084,3.2644,153.16,153.12,3.265]
[1727221035282,2.5658,153.18,153.1,10.97]
[1727221035893,2.5658,153.18,153.11,3.30567171]
[1727221036583,3.2643,153.17,153.13,3.265]
[1727221036787,1.2692,153.2,153.12,10.97]
[1727221037792,3.2637,153.19,153.15,3.2645]
[1727221040889,10.97,153.19,153.11,3.30567171]
[1727221041192,10.97,153.17,153.08,338.0]
[1727221041390,14.2348,153.15,153.08,338.0]
[1727221041995,14.2348,153.15,153.1,3.2655]
[1727221042288,10.97,153.15,153.1,3.2655]
[1727221042500,10.97,153.15,153.06,10.97]
[1727221043190,10.97,153.15,153.06,14.29287991]
[1727221043590,3.265,153.13,153.09,3.2657]
[1727221047995,12.2888,153.17,153.06,14.29287991]
[1727221048797,3.2647,153.15,153.1,3.2654]
[1727221049497,3.2647,153.15,153.11,3.2654]
[1727221050093,12.2888,153.17,153.06,3.32287991]
[1727221050289,10.97,153.15,153.05,10.97]
[1727221050494,10.97,153.15,153.06,3.32995059]
[1727221050797,3.2651,153.13,153.09,3.2657]
[1727221051796,3.2651,153.13,153.06,3.32995059]
[1727221051797,4.5923,153.14,153.1,3.2655]
[1727221051998,1.3275,153.14,153.07,10.97]
[1727221052801,1.3275,153.14,153.11,3.2653]
[1727221054296,8.3575,153.14,153.11,3.2653]
[1727221057602,1.3275,153.14,153.11,3.2653]
[1727221057804,1.3275,153.14,153.09,7.03]
[1727221058001,7.03,153.15,153.09,7.03]
[1727221058304,7.03,153.15,153.12,3.2651]
[1727221058904,10.2946,153.15,153.12,3.2651]
[1727221060206,7.03,153.15,153.12,3.2651]
[1727221061000,1.3188,153.17,153.11,7.03]
[1727221061205,8.3488,153.17,153.11,7.03]
[1727221061607,11.6131,153.17,153.13,3.2649]
[1727221061799,11.6131,153.17,153.11,7.03]
[1727221062807,11.6131,153.17,153.13,3.2649]
[1727221063006,3.2641,153.18,153.11,7.03]
[1727221063202,7.03,153.18,153.12,7.03]
[1727221063405,7.03,153.18,153.11,7.03]
[1727221063605,3.2642,153.17,153.11,7.03]
[1727221063902,1.3783,153.19,153.12,7.03]
[1727221064106,1.3783,153.19,153.16,7.03]
[1727221064402,1.3783,153.19,153.04,340.4453]
[1727221064403,1.3783,153.19,153.14,7.03]
[1727221064599,1.3783,153.19,153.04,340.4453]
[1727221064600,7.03,153.18,153.13,7.03]
[1727221065809,7.03,153.18,153.15,3.2645]
[1727221067409,7.03,153.18,153.13,7.03]
[1727221067708,7.03,153.18,153.12,10.27044429]
[1727221067912,7.03,153.18,153.12,7.03]
[1727221068610,7.03,153.18,153.12,10.23160037]
[1727221068808,7.03,153.18,153.15,3.2645]
[1727221069810,7.03,153.16,153.13,3.2648]
[1727221070008,7.03,153.16,153.04,340.4453]
[1727221070009,7.03,153.13,153.07,10.37432192]
[1727221070205,7.03,153.12,153.07,7.03]
[1727221070405,7.03,153.12,153.1,3.2655]
[1727221072213,7.03,153.12,153.11,3.2654]
[1727221072716,7.03,153.12,153.07,3.27540019]
[1727221072911,7.03,153.12,153.07,7.03]
[1727221073112,7.03,153.12,153.07,10.28089839]
[1727221073412,7.03,153.12,153.1,3.2655]
[1727221074608,7.03,153.12,153.11,3.2654]
[1727221075118,7.03,153.14,153.11,3.2654]
[1727221080717,7.03,153.14,153.08,7.03]
[1727221081719,7.03,153.14,153.11,3.2654]
[1727221083719,3.9258,153.19,153.11,3.2654]
[1727221083922,7.03,153.14,153.11,3.2654]
[1727221084423,3.9258,153.19,153.12,7.03]
[1727221084621,3.9258,153.19,153.13,7.03]
[1727221084622,7.03,153.18,153.13,7.03]
[1727221085420,3.9258,153.19,153.14,7.03]
[1727221085617,7.03,153.17,153.11,7.03]
[1727221085821,7.03,153.17,153.11,10.30169318]
[1727221086030,7.03,153.17,153.13,3.2649]
[1727221088819,3.9258,153.19,153.13,3.2649]
[1727221089018,7.03,153.17,153.13,3.2649]
[1727221091521,78.4,153.28,153.13,7.03]
[1727221091831,78.4,153.28,153.16,7.03]
[1727221091832,7.03,153.23,153.16,7.03]
[1727221092030,16.56784954,153.27,153.19,3.2637]
[1727221092031,4.0051,153.27,153.19,3.2637]
[1727221092336,7.03,153.22,153.19,3.2637]
[1727221093831,7.03,153.22,153.14,3.25842771]
[1727221094026,7.03,153.22,153.16,7.03]
[1727221094427,16.58123254,153.27,153.18,7.03]
[1727221094634,7.03,153.24,153.18,7.03]
[1727221095029,7.03,153.24,153.2,3.2634]
[1727221106236,7.03,153.21,153.1,343.57089007]
[1727221106434,7.03,153.19,153.13,7.03]
[1727221106840,7.03,153.16,153.1,339.2861]
[1727221107135,7.03,153.15,153.1,7.03]
[1727221107340,7.03,153.15,153.12,3.2651]
[1727221108443,7.03,153.15,153.1,7.03]
[1727221109139,7.03,153.15,153.13,3.2649]
[1727221110145,2.6972,153.19,153.11,7.03]
[1727221110345,7.03,153.17,153.11,7.03]
[1727221111745,7.03,153.17,153.13,3.2648]
[1727221112835,7.03,153.14,153.08,3.2587682]
[1727221113038,7.03,153.14,153.08,10.2887682]
[1727221113246,7.03,153.14,153.08,7.03]
[1727221113848,7.03,153.14,153.08,10.35494348]
[1727221114641,7.03,153.14,153.08,7.03]
[1727221114844,7.03,153.14,153.11,3.2654]
[1727221118351,7.03,153.14,153.09,7.03]
[1727221119646,7.03,153.14,153.06,3.19037799]
[1727221119844,7.03,153.14,153.09,7.03]
[1727221120049,7.03,153.14,153.1,7.03]
[1727221120250,7.03,153.16,153.12,3.2651]
[1727221123164,7.03,153.16,153.11,7.03]
[1727221123547,7.03,153.17,153.11,7.03]
[1727221123747,7.03,153.17,153.14,3.2647]
[1727221124347,7.03,153.16,153.11,7.03]
[1727221124551,7.03,153.16,153.13,3.2648]
[1727221125651,7.03,153.14,153.12,3.2651]
[1727221126351,7.03,153.13,153.04,1.264]
[1727221126551,7.03,153.08,153.0,6.48045992]
[1727221126748,7.03,153.07,153.01,7.03]
[1727221127444,7.03,153.07,153.03,3.2669]
[1727221128653,7.03,153.07,153.04,3.2668]
[1727221136458,7.03,153.07,153.05,3.2667]
[1727221137955,10.2963,153.07,153.01,7.03]
[1727221138149,7.03,153.06,153.0,8.3813]
[1727221138353,7.03,153.06,153.0,7.03]
[1727221138658,7.03,153.06,153.02,3.2672]
[1727221138855,10.2967,153.06,153.02,3.2672]
[1727221139460,7.03,153.03,152.98,7.03]
[1727221139657,7.03,153.02,152.98,7.03]
[1727221141659,10.2975,153.02,152.96,338.0]
[1727221141862,7.03,153.01,152.96,338.0]
[1727221142062,7.03,153.01,152.95,7.03]
[1727221142266,7.03,153.01,152.95,10.28825537]
[1727221142568,7.03,153.01,152.98,3.268]
[1727221144360,7.03,152.99,152.96,3.2686]
[1727221144662,6.5312,153.11,152.93,7.03]
[1727221144663,7.03,152.98,152.93,7.03]
[1727221145965,7.03,152.98,152.96,3.2684]
[1727221148563,2.6006,153.03,152.96,7.03]
[1727221148762,7.03,153.04,152.98,7.03]
[1727221149168,3.267,153.04,153.01,3.2675]
[1727221149465,10.297,153.04,153.01,3.2675]
[1727221149661,7.03,153.03,152.98,7.03]
[1727221150060,10.2972,153.03,152.98,7.03]
[1727221150266,7.03,153.01,152.96,7.03]
[1727221151570,7.03,153.01,152.98,3.268]
[1727221152276,7.03,153.01,152.99,3.268]
[1727221152871,7.03,153.01,152.98,3.268]
[1727221153565,3.2671,153.03,152.96,7.03]
[1727221153772,7.03,153.02,152.96,7.03]
[1727221154478,10.2974,153.02,152.99,3.2678]
[1727221155368,5.93631399,153.04,152.99,7.03]
[1727221155369,2.5995,153.04,152.99,7.03]
[1727221155674,9.6295,153.04,152.99,7.03]
[1727221156371,9.6295,153.04,153.01,3.2674]
[1727221156574,7.03,153.04,153.01,3.2674]
[1727221160169,10.2969,153.04,153.01,3.2674]
[1727221160973,7.03,153.02,152.88,395.80765393]
[1727221161172,7.03,152.94,152.89,9.4933]
[1727221161377,7.03,152.94,152.89,343.71250097]
[1727221161572,7.03,152.94,152.92,3.2693]
[1727221161979,7.03,152.94,152.89,343.71250097]
[1727221163276,7.03,152.94,152.93,3.2693]
[1727221165481,3.2687,152.96,152.93,3.2693]
[1727221165681,7.03,152.94,152.93,3.2693]
[1727221167194,7.03,152.94,152.92,3.2694]
[1727221170492,7.03,152.93,152.9,3.2699]
[1727221172601,10.2995,152.93,152.89,3.2699]
[1727221174505,3.2695,152.93,152.89,3.2699]
[1727221174703,10.2995,152.93,152.9,3.2699]
[1727221175500,3.2699,152.91,152.87,3.2705]
[1727221175800,7.03,152.93,152.88,7.03]
[1727221176304,3.2695,152.92,152.83,2.7029]
[1727221176602,3.2695,152.92,152.87,7.03]
[1727221177003,3.2695,152.92,152.88,3.2702]
[1727221178900,4.0589,152.99,152.83,340.7029]
[1727221178901,7.03,152.89,152.85,3.2708]
[1727221179103,7.03,152.89,152.83,347.7329]
[1727221179607,7.03,152.89,152.85,3.2708]
[1727221179907,8.3014,152.91,152.86,7.03]
[1727221180402,8.3014,152.91,152.88,3.2703]
[1727221180999,1.2714,152.91,152.89,7.03]
[1727221181302,2.7425,152.99,152.9,7.03]
[1727221181303,1.2716,152.98,152.9,7.03]
[1727221181499,1.2716,152.98,152.92,7.03]
[1727221181707,8.3016,152.98,152.93,7.03]
[1727221181899,8.3016,152.98,152.83,340.7029]
[1727221181900,8.3016,152.98,152.92,7.03]
[1727221182101,11.5698,152.98,152.94,3.2689]
[1727221182801,8.3016,152.98,152.95,3.2687]
[1727221184709,1.2716,152.98,152.95,3.2687]
[1727221184907,1.2716,152.98,152.96,3.2686]
[1727221185106,1.2716,152.98,152.94,7.03]
[1727221185602,1.2716,152.98,152.95,3.2688]
[1727221186806,4.54,152.98,152.94,3.2689]
[1727221187007,1.2716,152.98,152.94,3.2689]
[1727221187912,3.2684,152.97,152.94,3.2689]
[1727221189300,10.2984,152.97,152.94,3.2689]
[1727221193602,10.2984,152.97,152.92,7.03]
[1727221193603,1.2716,152.98,152.92,7.03]
[1727221193802,1.2716,152.98,152.94,7.03]
[1727221194305,1.2716,152.98,152.96,3.2686]
[1727221200418,8.3016,152.98,152.91,340.7009]
[1727221200614,8.3016,152.98,152.92,7.03]
[1727221201014,2.7476,153.05,152.96,7.03]
[1727221201314,2.7476,153.05,153.0,7.03]
[1727221201624,2.7476,153.05,153.01,3.2675]
[1727221201918,7.03,153.04,153.01,3.2675]
[1727221202112,10.2969,153.04,153.0,3.2677]
[1727221202316,10.2969,153.04,152.99,7.03]
[1727221203915,10.2969,153.04,153.01,3.2674]
[1727221204115,7.03,153.04,153.01,3.2674]
[1727221204417,7.03,153.06,153.0,7.03]
[1727221204617,7.03,153.06,153.03,3.2671]
[1727221207321,1.3617,153.07,153.04,3.2668]
[1727221207721,8.3917,153.07,153.04,3.2668]
[1727221210017,1.3617,153.07,153.03,7.03]
[1727221210217,2.646,153.12,153.04,7.03]
[1727221210423,7.03,153.1,153.04,7.03]
[1727221210722,7.03,153.1,153.07,3.2661]
[1727221210920,3.2655,153.11,153.07,3.2661]
[1727221211121,7.03,153.1,153.08,3.2659]
[1727221211618,7.03,153.1,153.06,7.03]
[1727221212624,7.03,153.1,153.07,3.2662]
[1727221214422,10.2957,153.1,153.06,10.2964]
[1727221215121,10.2957,153.1,153.07,3.2662]
[1727221217528,7.03,153.1,153.07,3.2662]
[1727221219125,7.03,153.1,153.06,7.03]
[1727221220627,10.2957,153.1,153.07,3.2663]
[1727221222030,10.2957,153.1,153.06,7.03]
[1727221223235,7.03,153.11,153.09,3.2658]
[1727221224431,7.03,153.11,153.08,3.266]
[1727221225931,10.2954,153.11,153.08,3.266]
[1727221226523,1.3927,153.12,153.09,3.2657]
[1727221226723,2.6689,153.19,153.11,7.03]
[1727221226928,7.03,153.15,153.11,7.03]
[1727221227132,10.2947,153.15,153.11,10.2953]
[1727221227325,10.2947,153.15,153.11,3.2653]
[1727221227936,10.2947,153.15,153.11,10.2953]
[1727221228332,10.2947,153.15,153.12,3.2652]
[1727221228833,1.3344,153.19,153.13,7.03]
[1727221229035,8.3644,153.19,153.14,7.03]
[1727221229429,3.2642,153.17,153.13,7.03]
[1727221230335,3.2642,153.17,153.13,10.295]
[1727221231329,3.2642,153.17,153.13,3.265]
[1727221233438,3.264,153.18,153.14,7.03]
[1727221233637,3.264,153.18,153.15,7.03]
[1727221235034,3.264,153.18,153.15,10.2945]
[1727221236540,3.264,153.18,153.15,3.2645]
[1727221236742,3.264,153.18,153.14,10.2947]
[1727221238637,7.03,153.21,153.16,7.03]
[1727221238937,7.03,153.18,153.14,338.0]
[1727221239141,7.03,153.17,153.14,341.2646]
[1727221239537,7.03,153.15,153.14,338.0]
[1727221239737,7.03,153.15,153.08,340.5958]
[1727221239941,7.03,153.12,153.08,340.5958]
[1727221240242,7.03,153.12,153.09,3.2658]
[1727221240746,7.03,153.12,153.1,3.2656]
[1727221243744,10.2954,153.12,153.08,3.2659]
[1727221243951,7.03,153.09,153.01,2.63]
[1727221244257,10.296,153.09,153.05,3.2665]
[1727221244949,10.296,153.09,153.03,7.03]
[1727221246155,7.03,153.09,153.03,7.03]
[1727221246356,7.03,153.09,153.04,3.2669]
[1727221247862,1.3205,153.11,153.07,7.03]
[1727221248161,1.3205,153.11,153.08,7.03]
[1727221248360,4.586,153.11,153.08,10.2959]
[1727221248662,4.586,153.11,153.08,3.2659]
[1727221248959,4.586,153.11,153.07,3.2662]
[1727221249156,7.03,153.1,153.05,7.03]
[1727221249361,7.03,153.08,153.03,7.03]
[1727221249562,3.2664,153.07,153.03,10.297]
[1727221250462,3.2664,153.07,153.04,3.2669]
[1727221251367,3.2661,153.08,153.05,7.03]
[1727221254562,3.2661,153.08,153.05,10.2967]
[1727221254771,3.2658,153.1,153.07,7.03]
[1727221254967,3.2658,153.1,153.08,7.03]
[1727221255963,3.2658,153.1,153.07,10.2961]
[1727221256365,3.2658,153.1,153.07,7.03]
[1727221256863,3.2659,153.09,153.07,7.03]
[1727221257065,3.2659,153.09,153.06,10.2964]
[1727221266485,3.2661,153.08,153.01,340.63]
[1727221266685,3.2661,153.08,153.05,7.03]
[1727221267179,3.2659,153.09,153.06,3.2665]
[1727221267974,1.3205,153.11,153.06,7.03]
[1727221268378,3.2656,153.1,153.08,10.2959]
[1727221269575,3.2656,153.1,153.08,7.03]
[1727221270176,4.586,153.11,153.08,10.296]
[1727221271079,3.2656,153.1,153.08,7.03]
[1727221273984,3.2656,153.1,153.07,3.2662]
[1727221276580,7.03,153.08,153.03,3.2671]
[1727221276885,7.03,153.07,153.03,3.2671]
[1727221277777,3.2666,153.06,153.03,10.2971]
[1727221278390,3.2667,153.05,153.03,7.03]
[1727221280085,3.2666,153.06,153.03,7.03]
[1727221280384,3.2666,153.06,153.01,1.2758]
[1727221280586,3.2666,153.06,153.03,7.03]
[1727221282084,3.2663,153.07,153.04,10.2969]
[1727221282888,3.2665,153.06,153.03,10.297]
[1727221284479,3.2665,153.06,153.03,3.267]
[1727221284690,3.2665,153.06,153.03,10.297]
[1727221284895,3.2664,153.07,153.04,10.2969]
[1727221285095,3.2664,153.07,153.05,7.03]
[1727221286990,3.2664,153.07,153.04,7.03]
[1727221287692,3.2665,153.06,153.04,7.03]
[1727221290498,3.2664,153.07,153.04,10.2968]
[1727221293795,3.266,153.09,153.06,3.2664]
[1727221294101,3.266,153.09,153.07,7.03]
[1727221297301,12.6025967,153.15,153.08,7.03]
[1727221297498,8.3505,153.2,153.14,7.03]
[1727221297991,8.3505,153.2,153.16,7.03]
[1727221299798,1.3205,153.2,153.16,7.03]
[1727221299996,12.60171812,153.22,153.18,7.03]
[1727221300196,1.2759,153.24,153.2,7.03]
[1727221300394,13.86686615,153.24,153.21,7.03]
[1727221300597,1.2759,153.24,153.21,7.03]
[1727221301399,3.2623,153.26,153.23,7.03]
[1727221302837,3.2624,153.25,153.22,7.03]
[1727221303306,3.2624,153.25,153.2,3.2635]
[1727221303604,3.2624,153.25,153.22,7.03]
[1727221310306,7.03,153.25,153.19,338.0]
[1727221310605,7.03,153.21,153.19,338.0]
[1727221310805,3.2635,153.2,153.19,338.0]
[1727221311600,10.2935,153.2,153.19,338.0]
[1727221313006,3.2638,153.19,153.15,7.03]
[1727221314805,7.03,153.18,153.13,68.01471114]
[1727221315005,7.03,153.19,153.15,7.03]
[1727221315200,3.2637,153.19,153.16,7.03]
[1727221315807,7.03,153.18,153.14,7.03]
[1727221315999,7.03,153.17,153.13,7.03]
[1727221316200,7.03,153.16,153.11,7.03]
[1727221316511,7.03,153.13,153.08,7.03]
[1727221316904,3.2652,153.12,153.03,2.6107]
[1727221317099,1.2638,153.16,153.11,7.03]
[1727221317304,1.2638,153.16,153.14,7.03]
[1727221318703,1.2638,153.16,153.13,3.265]
[1727221318704,3.2642,153.17,153.15,7.03]
[1727221318907,3.2642,153.17,153.1,3.20967246]
[1727221318908,19.55035935,153.25,153.16,7.03]
[1727221319115,7.03,153.25,153.21,7.03]
[1727221319612,88.30835859,153.26,153.2,7.03]
[1727221319813,7.03,153.25,153.2,7.03]
[1727221320308,3.2629,153.23,153.17,10.97]
[1727221320809,88.30835859,153.26,153.06,338.0]
[1727221320810,10.97,153.19,153.06,338.0]
[1727221321011,10.97,153.17,153.07,2.6153]
[1727221321213,10.97,153.17,153.07,13.5853]
[1727221321406,3.2651,153.13,153.07,13.5853]
[1727221321721,3.28389242,153.16,153.07,13.5853]
[1727221322917,3.2651,153.13,153.09,3.2658]
[1727221323721,1.3393,153.18,153.11,10.97]
[1727221324214,4.6034,153.18,153.13,3.2648]
[1727221326415,3.2642,153.17,153.13,3.2648]
[1727221327416,3.2642,153.17,153.11,10.97]
[1727221327417,1.3857,153.21,153.14,3.2647]
[1727221327612,1.3547,153.21,153.15,10.97]
[1727221328119,4.6181,153.21,153.17,3.2641]
[1727221328816,4.6181,153.21,153.15,10.97]
[1727221329019,1.3547,153.21,153.15,10.97]
[1727221329213,1.3547,153.21,153.12,10.97]
[1727221329713,1.3547,153.21,153.14,3.2646]
[1727221330210,3.264,153.18,153.14,3.2646]
[1727221331418,3.264,153.18,153.15,3.2646]
[1727221331612,3.264,153.18,153.12,10.97]
[1727221332015,3.264,153.18,153.14,3.2646]
[1727221332324,1.3547,153.21,153.14,10.97]
[1727221332820,1.3547,153.21,153.17,3.2641]
[1727221333416,1.3306,153.25,153.19,10.97]
[1727221334817,3.2627,153.24,153.21,3.2633]
[1727221335820,3.2627,153.24,153.2,3.2634]
[1727221336516,3.2627,153.24,153.21,3.2632]
[1727221336826,3.2623,153.26,153.21,10.97]
[1727221337219,3.2625,153.25,153.19,10.97]
[1727221337423,1.3762,153.27,153.19,10.97]
[1727221338524,1.3762,153.27,153.2,3.2633]
[1727221339024,78.38,153.36,153.24,10.97]
[1727221339222,10.97,153.33,153.24,10.97]
[1727221339519,10.97,153.33,153.26,3.2621]
[1727221340023,3.2613,153.31,153.26,3.2621]
[1727221340723,3.2614,153.3,153.26,3.2621]
[1727221340924,3.9571,153.35,153.24,10.97]
[1727221341229,14.9271,153.35,153.24,10.97]
[1727221341426,3.2613,153.31,153.24,10.97]
[1727221341621,3.2613,153.31,153.24,14.27733076]
[1727221342324,14.9271,153.35,153.22,340.5569]
[1727221342531,10.97,153.33,153.23,10.97]
[1727221342830,10.97,153.33,153.26,3.2622]
[1727221342831,3.2614,153.3,153.26,3.2622]
[1727221343228,10.97,153.33,153.23,10.97]
[1727221343726,3.2616,153.29,153.25,3.2623]
[1727221343929,10.97,153.33,153.23,10.97]
[1727221344225,3.2615,153.3,153.23,10.97]
[1727221344426,10.97,153.33,153.23,10.97]
[1727221344727,3.2617,153.29,153.25,3.2622]
[1727221344933,14.27352078,153.31,153.22,340.5569]
[1727221345125,10.97,153.27,153.22,338.0]
[1727221345520,3.2627,153.24,153.17,13.5698]
[1727221345827,3.2627,153.24,153.17,351.5698]
[1727221346526,1.3573,153.35,153.22,10.97]
[1727221346730,13.624,153.34,153.24,10.97]
[1727221347619,3.2615,153.3,153.26,3.2621]
[1727221349326,13.624,153.34,153.24,10.97]
[1727221349327,3.2616,153.29,153.25,3.2624]
[1727221350625,3.2616,153.29,153.26,3.2622]
[1727221351233,3.2618,153.28,153.25,3.2623]
[1727221351431,10.97,153.29,153.2,348.97]
[1727221351733,1.3936,153.28,153.2,338.0]
[1727221352434,1.3936,153.28,153.21,3.2631]
[1727221353633,3.2625,153.25,153.21,3.2631]
[1727221354233,1.3936,153.28,153.22,10.97]
[1727221355438,1.3936,153.28,153.24,3.2625]
[1727221355439,4.6555,153.28,153.24,3.2625]
[1727221356035,1.3936,153.28,153.25,3.2624]
[1727221356239,3.2616,153.29,153.25,3.2624]
[1727221356440,10.97,153.31,153.25,3.2624]
[1727221356742,14.29734236,153.31,153.25,3.2624]
[1727221357041,14.29734236,153.31,153.22,10.97]
[1727221357540,3.2622,153.27,153.23,3.2627]
[1727221357738,3.2622,153.27,153.22,10.97]
[1727221357939,3.2614,153.3,153.27,3.2619]
[1727221358243,3.2614,153.3,153.24,10.97]
[1727221358740,3.2616,153.29,153.26,3.2622]
[1727221361843,3.2619,153.28,153.22,10.97]
[1727221362150,12.2473,153.33,153.22,10.97]
[1727221362747,3.2617,153.29,153.22,10.97]
[1727221363140,3.2617,153.29,153.25,3.2623]
[1727221365445,3.2617,153.29,153.26,3.2622]
[1727221367854,1.2773,153.33,153.26,10.97]
[1727221368349,3.2612,153.31,153.26,10.97]
[1727221368552,1.2773,153.33,153.26,10.97]
[1727221368743,3.2612,153.31,153.27,3.2619]
[1727221371143,1.2773,153.33,153.26,10.97]
[1727221371144,1.2773,153.33,153.3,3.2613]
[1727221371349,1.2773,153.33,153.28,10.97]
[1727221371948,1.2656,153.38,153.28,10.97]
[1727221372146,13.5279,153.38,153.28,10.97]
[1727221372547,13.5279,153.38,153.3,3.2612]
[1727221376045,13.5279,153.38,153.28,10.97]
[1727221376854,13.5279,153.38,153.31,3.2611]
[1727221378056,13.5279,153.38,153.3,3.2613]
[1727221383261,13.5279,153.38,153.27,2.6064]
[1727221383262,2.5579,153.38,153.31,10.97]
[1727221383657,10.97,153.37,153.31,3.2611]
[1727221384065,10.97,153.37,153.27,351.5764]
[1727221384259,10.97,153.37,153.3,3.2613]
[1727221384565,3.26525285,153.36,153.3,3.2613]
[1727221385757,3.26525285,153.36,153.31,3.2611]
[1727221389260,10.97,153.36,153.27,2.6064]
[1727221389466,14.22057213,153.36,153.27,2.6064]
[1727221390363,14.22057213,153.36,153.27,12.8783]
[1727221390364,7.01,153.32,153.27,12.8783]
[1727221390671,7.01,153.32,153.27,11.5517]
[1727221391358,7.01,153.32,153.27,10.2719]
[1727221392259,3.20098492,153.33,153.27,3.2619]
[1727221392461,10.96,153.35,153.27,3.2619]
[1727221392667,3.19520351,153.34,153.27,3.2619]
[1727221393564,10.96,153.35,153.27,3.2619]
[1727221394165,14.20120818,153.35,153.27,3.2619]
[1727221394763,14.20120818,153.35,153.25,10.96]
[1727221395071,14.20120818,153.35,153.28,3.2618]
[1727221396071,14.20120818,153.35,153.27,3.2619]
[1727221396464,14.20120818,153.35,153.26,3.2621]
[1727221396666,10.96,153.33,153.23,68.64063205]
[1727221396970,3.2619,153.28,153.24,3.2625]
[1727221398573,3.2616,153.29,153.25,3.2622]